bitfinex-derivatives/quotes_ETHF0:USTF0_20260118
["timestamp","ask_amount","ask_price","bid_price","bid_amount"]
[1768698002279,0.28196024,3307.0,3305.9,0.00296328]
[1768698002486,0.9764951,3307.2,3305.9,0.00296328]
[1768698002687,1.33836599,3307.1,3305.9,0.00296328]
[1768698002881,0.9764951,3307.2,3305.9,0.00296328]
[1768698002882,0.28195084,3307.0,3305.9,0.00296328]
[1768698003081,0.28194006,3306.9,3305.9,0.00296328]
[1768698003374,0.9764951,3307.0,3305.9,0.00296328]
[1768698003579,0.28193117,3306.9,3305.9,0.00296328]
[1768698003779,0.9764951,3307.0,3305.9,0.00296328]
[1768698003974,0.28193107,3306.9,3305.9,0.00296328]
[1768698004177,0.9764951,3307.0,3305.9,0.00296328]
[1768698004378,0.9764951,3306.8,3305.9,0.00296328]
[1768698004881,0.9764951,3306.6,3305.4,0.13085273]
[1768698005188,0.9764951,3306.6,3305.2,0.9764951]
[1768698005383,0.14254539,3306.7,3305.0,0.13085273]
[1768698005887,0.2818624,3306.6,3305.0,0.13085273]
[1768698006090,0.14254539,3306.7,3305.0,0.13299979]
[1768698006389,0.28183443,3306.6,3305.0,0.13299979]
[1768698006587,0.14254539,3306.7,3305.0,0.13299979]
[1768698006885,0.28183111,3306.6,3305.0,0.13299979]
[1768698007085,0.14254539,3306.7,3305.0,0.13299979]
[1768698007287,0.28179149,3306.6,3305.0,0.13299979]
[1768698007485,0.14254539,3306.7,3305.0,0.13299979]
[1768698007689,0.28178634,3306.6,3305.0,0.13299979]
[1768698007884,0.14254539,3306.7,3305.0,0.13299979]
[1768698008083,0.28176466,3306.6,3305.0,0.13299979]
[1768698008284,0.14254539,3306.7,3305.0,0.13299979]
[1768698011896,0.28162629,3306.6,3305.0,0.13299979]
[1768698012195,0.28162629,3306.5,3305.0,0.13299979]
[1768698012393,0.14254539,3306.7,3305.0,0.13299979]
[1768698012591,0.28156866,3306.6,3305.0,0.13299979]
[1768698012792,0.28156866,3306.5,3305.0,0.13299979]
[1768698012989,0.14254539,3306.7,3305.0,0.13299979]
[1768698013190,0.28156886,3306.6,3305.0,0.13299979]
[1768698013391,0.28156886,3306.5,3305.0,0.13299979]
[1768698013590,0.14254539,3306.7,3305.0,0.13299979]
[1768698013790,0.28151691,3306.6,3305.0,0.13299979]
[1768698013995,0.28151691,3306.5,3305.0,0.13299979]
[1768698014297,0.14254539,3306.7,3305.0,0.13299979]
[1768698014500,0.28147781,3306.6,3305.0,0.13299979]
[1768698014798,0.28147781,3306.5,3305.0,0.13299979]
[1768698014998,0.14254539,3306.7,3305.0,0.13299979]
[1768698015199,0.28144239,3306.6,3305.0,0.13299979]
[1768698015391,0.28144239,3306.5,3305.0,0.13299979]
[1768698015591,0.14254539,3306.7,3305.0,0.13299979]
[1768698015790,0.28139578,3306.6,3305.0,0.13299979]
[1768698015996,0.28139578,3306.5,3305.0,0.13299979]
[1768698016200,0.14254539,3306.7,3305.0,0.13299979]
[1768698016395,0.28137277,3306.6,3305.0,0.13299979]
[1768698016593,0.28137277,3306.5,3305.0,0.13299979]
[1768698016793,0.14254539,3306.7,3305.0,0.13299979]
[1768698016994,0.28134606,3306.6,3305.0,0.13299979]
[1768698017296,0.14254539,3306.7,3305.0,0.13299979]
[1768698017498,0.28132197,3306.6,3305.0,0.13299979]
[1768698017698,0.14254539,3306.7,3305.0,0.13299979]
[1768698017894,0.28131674,3306.6,3305.0,0.13299979]
[1768698018095,0.14254539,3306.7,3305.0,0.13299979]
[1768698018294,0.14254539,3306.5,3305.0,0.13299979]
[1768698030505,0.97700132,3306.8,3305.0,0.13299979]
[1768698030706,1.33414121,3306.7,3305.0,0.13299979]
[1768698030908,0.28136138,3306.6,3305.0,0.13299979]
[1768698031116,0.28136138,3306.5,3305.0,0.13299979]
[1768698031414,2.67200132,3306.8,3305.0,0.13299979]
[1768698031711,0.97700132,3305.8,3305.0,0.00214706]
[1768698031906,0.97700132,3305.8,3304.5,0.13016252]
[1768698032106,0.13535579,3306.1,3304.5,0.13016252]
[1768698032306,0.28130921,3306.0,3304.5,0.13016252]
[1768698032509,0.28130921,3305.9,3304.5,0.13016252]
[1768698032713,0.13535579,3306.1,3304.5,0.13016252]
[1768698032907,0.28131016,3306.0,3304.5,0.13403986]
[1768698033113,0.28131016,3305.9,3304.5,0.13403986]
[1768698033314,0.15129,3306.4,3304.5,0.13403986]
[1768698033614,1.33367946,3306.3,3304.5,0.13403986]
[1768698033821,1.33367946,3306.2,3304.5,0.13403986]
[1768698034019,1.33367946,3306.1,3304.5,0.13403986]
[1768698034215,1.33367946,3306.0,3304.5,0.13403986]
[1768698034422,1.05240409,3305.9,3304.5,0.13403986]
[1768698034622,1.05240409,3305.8,3304.5,0.13403986]
[1768698034814,3.32206584,3306.3,3304.5,0.13403986]
[1768698035014,1.33361036,3306.2,3304.5,0.13403986]
[1768698035212,1.33361036,3306.1,3304.5,0.13403986]
[1768698035416,1.33361036,3306.0,3304.5,0.13403986]
[1768698035617,1.05234649,3305.9,3304.5,0.13403986]
[1768698035812,1.05234649,3305.8,3304.5,0.13403986]
[1768698036018,1.05234649,3305.7,3304.5,0.13403986]
[1768698036326,0.00220905,3305.7,3304.5,0.13403986]
[1768698045630,0.00220905,3305.7,3304.8,0.13105222]
[1768698048630,0.00220905,3305.7,3304.5,0.00387734]
[1768698049329,0.00220905,3305.7,3304.5,0.13492956]
[1768698060327,1.06788284,3305.6,3304.5,0.13492956]
[1768698060532,0.00220905,3305.7,3304.5,0.13492956]
[1768698060732,1.06788293,3305.6,3304.5,0.13492956]
[1768698060929,0.00220905,3305.7,3304.5,0.13492956]
[1768698061134,1.0678827,3305.6,3304.5,0.13492956]
[1768698061334,0.00220905,3305.7,3304.5,0.13492956]
[1768698061534,1.06809436,3305.6,3304.5,0.13492956]
[1768698061737,0.00220905,3305.7,3304.5,0.13492956]
[1768698061936,1.0681165,3305.6,3304.5,0.13492956]
[1768698062236,0.00220905,3305.7,3304.5,0.13492956]
[1768698062437,1.0681706,3305.6,3304.5,0.13492956]
[1768698062643,0.00220905,3305.7,3304.5,0.13492956]
[1768698062939,1.06817,3305.6,3304.5,0.13492956]
[1768698063235,0.00220905,3305.7,3304.5,0.13492956]
[1768698063435,1.06818124,3305.6,3304.5,0.13492956]
[1768698063629,0.00220905,3305.7,3304.5,0.13492956]
[1768698063835,1.06818124,3305.6,3304.5,0.13492956]
[1768698064136,0.00220905,3305.7,3304.5,0.13492956]
[1768698064334,1.06818119,3305.6,3304.5,0.13492956]
[1768698064536,0.00220905,3305.7,3304.5,0.13492956]
[1768698064736,1.06821685,3305.6,3304.5,0.13492956]
[1768698064936,0.00220905,3305.7,3304.5,0.13492956]
[1768698065146,1.06822731,3305.6,3304.5,0.13492956]
[1768698065343,0.00220905,3305.7,3304.5,0.13492956]
[1768698065544,1.06823339,3305.6,3304.5,0.13492956]
[1768698065745,0.00220905,3305.7,3304.5,0.13492956]
[1768698066236,1.05605703,3305.6,3304.5,0.13492956]
[1768698066436,0.00220905,3305.7,3304.5,0.13492956]
[1768698066737,1.05604594,3305.6,3304.5,0.13492956]
[1768698066943,0.00220905,3305.7,3304.5,0.13492956]
[1768698067241,1.05604419,3305.6,3304.5,0.13492956]
[1768698067443,0.00220905,3305.7,3304.5,0.13492956]
[1768698069044,1.05600588,3305.6,3304.5,0.13492956]
[1768698069236,1.05600588,3305.5,3304.5,0.13492956]
[1768698069436,0.00220905,3305.7,3304.5,0.13492956]
[1768698069643,1.05594877,3305.6,3304.5,0.13492956]
[1768698069835,1.05594877,3305.5,3304.5,0.13492956]
[1768698070033,0.00220905,3305.7,3304.5,0.13492956]
[1768698070233,1.05594988,3305.6,3304.5,0.13492956]
[1768698070438,1.05594988,3305.5,3304.5,0.13492956]
[1768698070641,0.00220905,3305.7,3304.5,0.13492956]
[1768698070842,1.05591513,3305.6,3304.5,0.13492956]
[1768698071043,1.05591513,3305.5,3304.5,0.13492956]
[1768698071352,0.00220905,3305.7,3304.5,0.13492956]
[1768698071543,2.03333584,3305.6,3304.5,0.13492956]
[1768698071742,1.05588484,3305.5,3304.5,0.13492956]
[1768698071942,0.977451,3305.6,3304.5,0.13492956]
[1768698072139,1.05588448,3305.5,3304.5,0.13492956]
[1768698072342,0.977451,3305.6,3304.5,0.13492956]
[1768698072548,1.05606094,3305.5,3304.5,0.13492956]
[1768698072851,0.977451,3305.6,3304.5,0.13492956]
[1768698073054,1.05606084,3305.5,3304.5,0.13492956]
[1768698073251,0.977451,3305.6,3304.5,0.13492956]
[1768698073552,1.05604583,3305.5,3304.5,0.13492956]
[1768698073752,0.977451,3305.6,3304.5,0.13492956]
[1768698073942,1.05606727,3305.5,3304.5,0.13492956]
[1768698074138,0.977451,3305.6,3304.5,0.13492956]
[1768698074342,1.05606827,3305.5,3304.5,0.13492956]
[1768698074542,0.977451,3305.6,3304.5,0.13492956]
[1768698074742,1.0560371,3305.5,3304.5,0.13492956]
[1768698074964,0.977451,3305.6,3304.5,0.13492956]
[1768698075139,1.0560371,3305.5,3304.5,0.13492956]
[1768698075342,0.977451,3305.6,3304.5,0.13492956]
[1768698075551,1.05600978,3305.5,3304.5,0.13492956]
[1768698075751,0.977451,3305.6,3304.5,0.13492956]
[1768698075947,1.05600978,3305.5,3304.5,0.13492956]
[1768698076252,0.977451,3305.6,3304.5,0.00387734]
[1768698076454,1.05610775,3305.5,3304.5,0.00387734]
[1768698076751,0.977451,3305.6,3304.5,0.00387734]
[1768698076949,1.05610775,3305.5,3304.5,0.00387734]
[1768698077150,0.977451,3305.6,3304.5,0.00387734]
[1768698077353,1.05610764,3305.5,3304.5,0.00387734]
[1768698077650,0.977451,3305.6,3304.5,0.00387734]
[1768698077852,1.0562194,3305.5,3304.5,0.00387734]
[1768698078060,0.977451,3305.6,3304.5,0.00387734]
[1768698078351,1.0562194,3305.5,3304.5,0.00387734]
[1768698078554,0.977451,3305.6,3304.5,0.00387734]
[1768698078746,0.977451,3305.4,3304.5,0.00387734]
[1768698079254,1.05628266,3305.3,3304.5,0.00230866]
[1768698079446,0.977451,3305.4,3304.5,0.00230866]
[1768698079646,1.05615132,3305.3,3304.5,0.00230866]
[1768698079954,0.977451,3305.4,3304.5,0.00230866]
[1768698080254,1.05615251,3305.3,3304.5,0.00230866]
[1768698080454,0.977451,3305.4,3304.5,0.00230866]
[1768698080649,1.0559472,3305.3,3304.5,0.00230866]
[1768698080849,2.03338033,3305.2,3304.5,0.00230866]
[1768698081052,0.977451,3305.2,3304.5,0.00230866]
[1768698087649,1.11825116,3305.6,3304.5,0.00230866]
[1768698087848,1.695,3305.4,3304.5,0.00230866]
[1768698088050,1.0547498,3305.3,3304.5,0.00230866]
[1768698089260,1.0547498,3305.2,3304.5,0.00230866]
[1768698089560,1.695,3305.4,3304.5,0.00230866]
[1768698089761,1.05454072,3305.3,3304.5,0.00230866]
[1768698090057,1.05454072,3305.2,3304.5,0.00230866]
[1768698090259,1.695,3305.4,3304.5,0.00230866]
[1768698090460,1.0543532,3305.3,3304.5,0.00230866]
[1768698090662,1.0543532,3305.2,3304.5,0.00230866]
[1768698090862,1.695,3305.5,3304.5,0.00230866]
[1768698091062,1.33543375,3305.4,3304.5,0.00230866]
[1768698091362,1.05433648,3305.3,3304.5,0.00230866]
[1768698091564,1.05433648,3305.2,3304.5,0.00230866]
[1768698091856,0.00220905,3305.7,3304.5,0.00230866]
[1768698092063,3.02999837,3305.6,3304.5,0.00230866]
[1768698092258,1.33499837,3305.5,3304.5,0.00230866]
[1768698092464,1.33499837,3305.4,3304.5,0.00230866]
[1768698092763,1.05399169,3305.3,3304.5,0.00230866]
[1768698093061,1.05399169,3305.2,3304.5,0.00230866]
[1768698093263,2.672451,3305.6,3304.5,0.00230866]
[1768698093560,0.977451,3305.4,3304.5,0.00230866]
[1768698093861,1.05398194,3305.3,3304.5,0.00230866]
[1768698094060,1.05398194,3305.2,3304.5,0.00230866]
[1768698094255,0.977451,3305.4,3304.5,0.00230866]
[1768698099367,2.672451,3305.6,3304.5,0.00230866]
[1768698099558,0.28106953,3305.5,3304.5,0.00230866]
[1768698099758,0.28106953,3305.4,3304.5,0.00230866]
[1768698099960,0.977451,3305.4,3304.5,0.00230866]
[1768698101068,0.14045104,3305.5,3304.5,0.00230866]
[1768698101258,0.28108463,3305.4,3304.5,0.00230866]
[1768698101454,0.14045104,3305.4,3303.7,0.15141]
[1768698101660,0.977451,3304.8,3303.3,1.11108647]
[1768698101858,0.977451,3304.8,3303.6,0.977451]
[1768698102059,1.386,3305.1,3303.6,1.11108647]
[1768698102367,1.386,3305.1,3303.7,0.13363547]
[1768698102571,1.386,3305.1,3303.7,0.13611927]
[1768698105473,1.386,3305.1,3303.8,0.977451]
[1768698109071,0.977451,3304.8,3303.7,0.0024838]
[1768698112077,0.977451,3304.6,3303.7,0.0024838]
[1768698115180,0.1307453,3305.0,3303.7,0.0024838]
[1768698115378,0.977451,3304.7,3303.7,0.0024838]
[1768698117688,0.1307453,3305.0,3303.7,0.0024838]
[1768698117875,0.977451,3304.7,3303.7,0.0024838]
[1768698118885,0.977451,3304.6,3303.7,0.0024838]
[1768698122791,0.977451,3304.4,3303.7,0.0024838]
[1768698125800,0.1307453,3304.9,3303.7,0.0024838]
[1768698125990,0.977451,3304.5,3303.7,0.0024838]
[1768698129297,1.10895186,3304.9,3303.7,0.0024838]
[1768698129598,0.1307453,3304.7,3303.7,0.0024838]
[1768698131789,0.1307453,3304.7,3302.9,0.12996816]
[1768698132300,1.695,3304.6,3302.9,0.12996816]
[1768698132690,1.695,3304.6,3302.9,0.133456]
[1768698132991,1.695,3304.8,3302.9,0.133456]
[1768698133288,0.28114857,3304.7,3302.9,0.133456]
[1768698133484,1.695,3304.8,3302.9,0.133456]
[1768698133684,0.28115854,3304.7,3302.9,0.133456]
[1768698133885,1.695,3304.8,3302.9,0.133456]
[1768698134083,0.28115856,3304.7,3302.9,0.133456]
[1768698134290,1.695,3304.8,3302.9,0.133456]
[1768698134491,0.28117305,3304.7,3302.9,0.133456]
[1768698134791,1.695,3304.8,3302.9,0.133456]
[1768698134992,0.28117356,3304.7,3302.9,0.133456]
[1768698135199,1.695,3304.8,3302.9,0.133456]
[1768698135399,0.28117077,3304.7,3302.9,0.133456]
[1768698135705,1.695,3304.8,3302.9,0.133456]
[1768698135996,0.28119542,3304.7,3302.9,0.133456]
[1768698136199,1.695,3304.8,3302.9,0.133456]
[1768698136401,0.28119323,3304.7,3302.9,0.133456]
[1768698136590,1.695,3304.8,3302.9,0.133456]
[1768698136791,0.28122292,3304.7,3302.9,0.133456]
[1768698136992,1.62927489,3305.7,3303.5,0.12996816]
[1768698137199,1.62927489,3305.7,3303.9,0.12996816]
[1768698137200,1.34134409,3305.6,3303.9,0.12996816]
[1768698137400,0.28130555,3305.5,3303.9,0.12996816]
[1768698137699,0.28130555,3305.4,3303.9,0.12996816]
[1768698138000,0.13295435,3305.7,3303.9,0.12996816]
[1768698138301,0.1307453,3305.5,3303.9,0.12996816]
[1768698138498,0.41198346,3305.4,3303.9,0.12996816]
[1768698138698,0.1307453,3305.4,3303.9,0.12996816]
[1768698139095,0.1307453,3305.4,3303.4,0.12996816]
[1768698139406,0.1307453,3305.2,3303.4,0.12996816]
[1768698140891,0.1307453,3305.6,3303.4,0.12996816]
[1768698141103,0.28111503,3305.5,3303.4,0.12996816]
[1768698141297,0.28111503,3305.4,3303.7,0.12996816]
[1768698141493,0.1307453,3305.6,3303.7,0.12996816]
[1768698141700,0.2810835,3305.5,3303.7,0.12996816]
[1768698141901,0.2810835,3305.4,3303.7,0.12996816]
[1768698142200,0.1307453,3305.6,3303.7,0.12996816]
[1768698142397,0.28105652,3305.5,3303.7,0.12996816]
[1768698142703,0.1307453,3305.6,3303.7,0.12996816]
[1768698142903,0.28106945,3305.5,3303.7,0.12996816]
[1768698143202,0.1307453,3305.6,3303.7,0.12996816]
[1768698144206,0.00220905,3305.7,3304.1,0.13661912]
[1768698162519,0.2808213,3305.6,3304.1,0.13661912]
[1768698162820,0.00220905,3305.7,3304.1,0.13661912]
[1768698163012,0.2808213,3305.6,3304.1,0.13661912]
[1768698163214,0.00220905,3305.7,3304.1,0.13661912]
[1768698163521,0.28089319,3305.6,3304.1,0.13661912]
[1768698163727,0.00220905,3305.7,3304.1,0.13661912]
[1768698164020,0.28089319,3305.6,3304.1,0.13661912]
[1768698164321,0.00220905,3305.7,3304.1,0.13661912]
[1768698164522,0.28098085,3305.6,3304.1,0.13661912]
[1768698164721,0.00220905,3305.7,3304.1,0.13661912]
[1768698164923,0.28098085,3305.6,3304.1,0.13661912]
[1768698165118,0.00220905,3305.7,3304.1,0.13661912]
[1768698165324,0.28109436,3305.6,3304.1,0.13661912]
[1768698165509,0.28109436,3305.5,3304.1,0.13661912]
[1768698165716,0.00220905,3305.7,3304.1,0.13661912]
[1768698166013,0.28109436,3305.6,3304.1,0.13661912]
[1768698166219,0.28109436,3305.5,3304.1,0.13661912]
[1768698166523,0.00220905,3305.7,3304.1,0.13661912]
[1768698166729,0.28126117,3305.6,3304.1,0.13661912]
[1768698166911,0.28126117,3305.5,3304.1,0.13661912]
[1768698167117,0.00220905,3305.7,3304.1,0.13661912]
[1768698167423,0.28129068,3305.6,3304.1,0.13661912]
[1768698167622,0.28129068,3305.5,3304.1,0.13661912]
[1768698167823,0.00220905,3305.7,3304.1,0.13661912]
[1768698168026,0.28129056,3305.6,3304.1,0.13661912]
[1768698168330,0.28129056,3305.5,3304.1,0.13661912]
[1768698168623,0.28129056,3305.4,3304.1,0.13661912]
[1768698168823,0.00220905,3305.7,3304.1,0.13661912]
[1768698169025,0.28130767,3305.6,3304.1,0.13661912]
[1768698169219,0.28130767,3305.5,3304.1,0.13661912]
[1768698169419,0.28130767,3305.4,3304.1,0.13661912]
[1768698169620,0.00220905,3305.7,3304.1,0.13661912]
[1768698169918,0.28132881,3305.6,3304.1,0.13661912]
[1768698170119,0.28132881,3305.5,3304.1,0.13661912]
[1768698170319,0.28132881,3305.4,3304.1,0.13661912]
[1768698170519,0.00220905,3305.7,3304.1,0.13661912]
[1768698170719,0.28137802,3305.6,3304.1,0.13661912]
[1768698170920,0.28137802,3305.5,3304.1,0.13661912]
[1768698171126,0.28137802,3305.4,3304.1,0.13661912]
[1768698171426,0.00220905,3305.7,3304.1,0.13661912]
[1768698171628,0.28142962,3305.6,3304.1,0.13661912]
[1768698171827,0.28142962,3305.5,3304.1,0.13661912]
[1768698172127,0.28142962,3305.4,3304.1,0.13661912]
[1768698172327,0.00220905,3305.7,3304.1,0.13661912]
[1768698172528,0.28151032,3305.6,3304.1,0.13661912]
[1768698172730,0.28151032,3305.5,3304.1,0.13661912]
[1768698173029,0.00220905,3305.7,3304.1,0.13661912]
[1768698173229,0.28151031,3305.6,3304.1,0.13661912]
[1768698173431,0.28151031,3305.5,3304.1,0.13661912]
[1768698173630,0.00220905,3305.7,3304.1,0.13661912]
[1768698173827,0.28155722,3305.6,3304.5,0.13829995]
[1768698174030,0.00220905,3305.7,3304.5,0.13829995]
[1768698174231,1.77831584,3306.8,3304.9,0.13829995]
[1768698174530,1.31595366,3306.7,3304.9,0.13829995]
[1768698174731,1.31595366,3306.6,3304.9,0.13829995]
[1768698174932,1.31595366,3306.5,3304.9,0.13829995]
[1768698175131,1.31595366,3306.4,3304.9,0.13829995]
[1768698175333,0.27940819,3306.3,3304.9,0.13829995]
[1768698175632,0.27940819,3306.2,3304.9,0.13829995]
[1768698175827,0.00380517,3306.4,3304.9,0.13829995]
[1768698176034,0.27927893,3306.3,3304.9,0.13829995]
[1768698176331,0.27927893,3306.2,3304.9,0.13829995]
[1768698176534,0.00380517,3306.4,3304.9,0.13829995]
[1768698176733,0.27916737,3306.3,3304.9,0.13829995]
[1768698176934,0.27916737,3306.2,3304.9,0.13829995]
[1768698177236,0.00380517,3306.4,3304.9,0.13829995]
[1768698177437,0.27908754,3306.3,3304.9,0.13829995]
[1768698177629,0.27908754,3306.2,3304.9,0.13829995]
[1768698177928,0.00380517,3306.4,3304.9,0.13829995]
[1768698178129,0.27908754,3306.3,3304.9,0.13829995]
[1768698178328,0.00380517,3306.4,3304.9,0.13829995]
[1768698178530,0.27902474,3306.3,3304.9,0.13829995]
[1768698178729,0.00380517,3306.4,3304.9,0.13829995]
[1768698178929,0.27902474,3306.3,3304.9,0.13829995]
[1768698179129,0.00380517,3306.4,3304.9,0.13829995]
[1768698180741,0.00380517,3306.4,3305.3,0.13829995]
[1768698180937,0.00380517,3306.4,3305.3,0.14165636]
[1768698191449,0.00380517,3306.4,3305.7,0.97667713]
[1768698191646,0.5585418,3307.0,3306.0,1.11497708]
[1768698192041,1.12789713,3307.4,3306.0,1.11497708]
[1768698192236,0.27845711,3307.3,3306.0,1.11497708]
[1768698192441,1.12789713,3307.4,3306.0,1.11497708]
[1768698192641,1.13182132,3307.4,3306.0,1.11497708]
[1768698193348,1.13182132,3307.4,3306.1,0.13829995]
[1768698194350,0.15514419,3307.4,3306.1,0.13829995]
[1768698194649,1.13182132,3307.4,3306.1,0.13829995]
[1768698195044,0.15514419,3307.4,3306.1,0.13829995]
[1768698197548,0.00392419,3307.4,3306.1,0.13829995]
[1768698197749,0.00392419,3307.4,3306.3,0.13829995]
[1768698198452,0.00392419,3307.4,3306.4,0.97667713]
[1768698199552,0.00392419,3307.4,3306.3,0.13829995]
[1768698199742,0.00392419,3307.4,3306.3,1.11497708]
[1768698202755,0.00392419,3307.4,3306.5,1.1062306]
[1768698202958,0.00392419,3307.4,3306.7,0.97667713]
[1768698203154,0.00392419,3307.4,3306.7,1.1062306]
[1768698204155,0.15119,3308.1,3306.7,1.1062306]
[1768698204357,0.27880971,3308.0,3306.7,1.1062306]
[1768698204547,2.67067713,3308.2,3306.7,1.1062306]
[1768698204749,0.27876662,3308.1,3306.7,1.1062306]
[1768698205051,2.67067713,3308.2,3306.7,1.1062306]
[1768698205251,0.2787661,3308.1,3306.7,1.1062306]
[1768698205452,2.67442352,3308.2,3306.7,1.1062306]
[1768698205644,0.27875533,3308.1,3306.7,1.1062306]
[1768698205953,2.67442352,3308.2,3306.7,0.12955347]
[1768698206154,0.27875615,3308.1,3306.7,0.12955347]
[1768698206354,2.67442352,3308.2,3306.7,0.12955347]
[1768698206557,0.27874906,3308.1,3306.7,0.12955347]
[1768698206856,0.97667713,3308.0,3306.7,0.12955347]
[1768698208760,0.97667713,3307.8,3306.4,0.97667713]
[1768698209562,0.97667713,3307.8,3306.4,1.1062306]
[1768698211261,0.97667713,3308.0,3306.4,1.1062306]
[1768698211462,0.97667713,3308.0,3306.6,0.97667713]
[1768698212660,0.97667713,3307.8,3306.0,0.12955347]
[1768698212963,0.97667713,3307.5,3306.1,0.12955347]
[1768698215961,0.97667713,3307.5,3306.2,0.97667713]
[1768698219664,0.13352632,3307.9,3306.2,1.11925512]
[1768698219865,0.97667713,3307.6,3306.2,1.11925512]
[1768698220066,0.27906342,3307.5,3306.2,1.11925512]
[1768698220366,0.97667713,3307.6,3306.2,1.11925512]
[1768698220565,0.27912635,3307.5,3306.2,1.11925512]
[1768698220765,0.97667713,3307.6,3306.2,1.11925512]
[1768698220961,0.27912704,3307.5,3306.2,1.11925512]
[1768698221166,0.97667713,3307.6,3306.2,1.11925512]
[1768698221360,0.97667713,3307.4,3306.2,0.14257799]
[1768698222265,0.97667713,3308.0,3305.9,0.97667713]
[1768698222266,0.97667713,3307.2,3305.9,0.97667713]
[1768698222671,0.97667713,3307.2,3305.9,1.11925512]
[1768698224065,0.97667713,3306.8,3305.5,0.14257799]
[1768698224272,0.97667713,3306.8,3305.5,1.11925512]
[1768698224965,0.97667713,3307.0,3305.5,1.11925512]
[1768698225170,0.97667713,3307.0,3305.6,0.14257799]
[1768698226777,0.97667713,3307.0,3305.7,0.97667713]
[1768698228362,0.13528869,3307.3,3305.5,1.11925512]
[1768698228363,0.97667713,3306.9,3305.5,1.11925512]
[1768698229781,0.97667713,3306.9,3305.5,0.14257799]
[1768698231285,0.97667713,3306.7,3305.5,0.14257799]
[1768698231679,0.97667713,3306.3,3305.3,0.00335641]
[1768698233288,0.13528869,3306.7,3305.3,0.00335641]
[1768698233289,0.97667713,3306.1,3305.3,0.00335641]
[1768698233685,0.97667713,3305.9,3304.7,0.14289516]
[1768698234079,0.97667713,3306.1,3304.8,0.97667713]
[1768698234688,0.97667713,3306.1,3304.8,0.97946297]
[1768698236683,0.13495191,3306.4,3304.8,0.97946297]
[1768698236890,0.97667713,3306.1,3304.8,0.97946297]
[1768698242679,0.97667713,3305.9,3304.8,0.00278584]
[1768698243090,0.97667713,3305.7,3304.8,0.00278584]
[1768698243286,0.00301716,3305.7,3304.8,0.00278584]
[1768698247296,0.00301716,3305.7,3304.8,0.97946297]
[1768698247495,0.00301716,3305.7,3304.8,1.12235813]
[1768698251101,0.00301716,3305.7,3305.0,0.97667713]
[1768698253302,0.00301716,3305.7,3304.8,0.145681]
[1768698258901,4.722,3306.7,3304.8,0.145681]
[1768698259096,1.31544572,3306.6,3304.8,0.145681]
[1768698259296,1.31544572,3306.5,3304.8,0.145681]
[1768698259495,4.722,3306.7,3304.8,0.145681]
[1768698259707,1.31603778,3306.6,3304.8,0.145681]
[1768698259904,0.27906692,3306.5,3304.8,0.145681]
[1768698260206,0.00364032,3306.6,3304.8,0.145681]
[1768698260406,0.27905961,3306.5,3304.8,0.145681]
[1768698260596,0.00364032,3306.6,3304.8,0.145681]
[1768698260905,0.27914083,3306.5,3304.8,0.145681]
[1768698261202,0.00364032,3306.6,3304.8,0.145681]
[1768698261404,0.27914063,3306.5,3304.8,0.145681]
[1768698261606,0.27922657,3306.4,3304.8,0.145681]
[1768698261902,0.00364032,3306.6,3304.8,0.145681]
[1768698262091,0.27922617,3306.5,3304.8,0.145681]
[1768698262297,0.27922617,3306.4,3304.8,0.145681]
[1768698262491,0.00364032,3306.6,3304.8,0.145681]
[1768698262702,0.27925609,3306.5,3304.8,0.145681]
[1768698262903,0.27925609,3306.4,3304.8,0.145681]
[1768698263106,0.00364032,3306.6,3304.8,0.145681]
[1768698263306,0.27925604,3306.5,3304.8,0.145681]
[1768698263605,0.00364032,3306.6,3304.8,0.145681]
[1768698263606,0.27925604,3306.4,3304.8,0.145681]
[1768698263800,0.00364032,3306.6,3304.8,0.145681]
[1768698264000,0.27926261,3306.5,3304.8,0.145681]
[1768698264201,0.27926261,3306.4,3304.8,0.145681]
[1768698264401,0.00364032,3306.6,3304.8,0.145681]
[1768698264600,0.27923162,3306.5,3304.8,0.145681]
[1768698264902,0.27923162,3306.4,3304.8,0.145681]
[1768698265101,0.00364032,3306.6,3304.8,0.145681]
[1768698265416,0.27923162,3306.5,3304.8,0.145681]
[1768698265707,0.27923162,3306.4,3304.8,0.145681]
[1768698265898,0.00364032,3306.6,3304.8,0.145681]
[1768698266099,0.27920432,3306.5,3304.8,0.145681]
[1768698266307,0.27920432,3306.4,3304.8,0.145681]
[1768698266503,0.00364032,3306.6,3304.8,0.145681]
[1768698266711,0.27909801,3306.5,3305.0,0.13858427]
[1768698266912,0.00364032,3306.6,3305.0,0.13858427]
[1768698267114,0.27909431,3306.5,3305.0,0.13858427]
[1768698267313,0.00364032,3306.6,3305.0,0.13858427]
[1768698267507,0.27907033,3306.5,3305.0,0.13858427]
[1768698267705,0.00364032,3306.6,3305.0,0.13858427]
[1768698267906,0.27907033,3306.5,3305.0,0.13858427]
[1768698268200,0.00364032,3306.6,3305.0,0.13858427]
[1768698268399,0.27905312,3306.5,3305.0,0.13858427]
[1768698268599,0.00364032,3306.6,3305.0,0.13858427]
[1768698268803,0.27904374,3306.5,3305.0,0.13858427]
[1768698269010,0.00364032,3306.6,3305.0,0.13858427]
[1768698269209,0.27904382,3306.5,3305.0,0.13858427]
[1768698269412,0.00364032,3306.6,3305.0,0.13858427]
[1768698269612,0.2790254,3306.5,3305.0,0.13858427]
[1768698269914,0.00364032,3306.6,3305.0,0.13858427]
[1768698270109,0.27902565,3306.5,3305.0,0.13858427]
[1768698270309,0.00364032,3306.6,3305.0,0.13858427]
[1768698270508,0.27901598,3306.5,3305.0,0.13858427]
[1768698270708,0.00364032,3306.6,3305.0,0.13858427]
[1768698270912,0.27901585,3306.5,3305.0,0.13858427]
[1768698271108,0.00364032,3306.6,3305.0,0.13858427]
[1768698271309,0.27901584,3306.5,3305.0,0.13858427]
[1768698271512,0.00364032,3306.6,3305.0,0.13858427]
[1768698271712,0.27899934,3306.5,3305.0,0.13858427]
[1768698272015,0.00364032,3306.6,3305.0,0.13858427]
[1768698272208,0.27899941,3306.5,3305.0,0.13858427]
[1768698272408,0.00364032,3306.6,3305.0,0.13858427]
[1768698272613,0.27898489,3306.5,3305.0,0.13858427]
[1768698272817,0.00364032,3306.6,3305.0,0.13858427]
[1768698273012,0.27898489,3306.5,3305.0,0.13858427]
[1768698273218,0.00364032,3306.6,3305.0,0.13858427]
[1768698273418,0.27898557,3306.5,3305.0,0.13858427]
[1768698273622,0.00364032,3306.6,3305.0,0.13858427]
[1768698273922,0.27898515,3306.5,3305.0,0.13858427]
[1768698274123,0.00364032,3306.6,3305.0,0.13858427]
[1768698274416,0.27898543,3306.5,3305.0,0.13858427]
[1768698274610,0.00364032,3306.6,3305.0,0.13858427]
[1768698289733,0.00364032,3306.6,3305.4,0.14152729]
[1768698301441,0.00364032,3306.6,3305.0,0.28454442]
[1768698301840,0.27934293,3306.5,3305.0,0.13321442]
[1768698302147,0.27934293,3306.4,3305.0,0.13321442]
[1768698302354,0.27934293,3306.3,3305.0,0.13321442]